[Event "Titled Tuesday Blitz December 06 Late 2022"]
[White "Toncheva, Nadya"]
[Black "Mendez Fortes, Eduardo Jesus"]
[WhiteFideId "2924056"]
[BlackFideId "3502376"]
[WhiteElo "2101"]
[BlackElo "2307"]
[Result "1-0"]
[Round "11"]
[TimeControl "180+1"]
[Date "2022.12.06"]
[WhiteClock "0:00:07"]
[BlackClock "0:00:06"]

1. d4 {[%clk 0:03:00]}  Nf6 {[%clk 0:02:59]} 2. c4 {[%clk 0:02:59]}  e6 {[%clk 0:02:59]} 3. Nc3 {[%clk 0:03:00]}  Bb4 {[%clk 0:02:59]} 4. e3 {[%clk 0:03:00]}  O-O {[%clk 0:02:58]} 5. Bd3 {[%clk 0:02:57]}  c5 {[%clk 0:02:58]} 6. Ne2 {[%clk 0:02:55]}  b6 {[%clk 0:02:58]} 7. a3 {[%clk 0:02:53]}  Bxc3+ {[%clk 0:02:58]} 8. Nxc3 {[%clk 0:02:54]}  Bb7 {[%clk 0:02:59]} 9. O-O {[%clk 0:02:54]}  d6 {[%clk 0:02:59]} 10. d5 {[%clk 0:02:38]}  exd5 {[%clk 0:02:47]} 11. cxd5 {[%clk 0:02:38]}  h6 {[%clk 0:02:47]} 12. e4 {[%clk 0:02:36]}  Re8 {[%clk 0:02:46]} 13. Bf4 {[%clk 0:02:33]}  c4 {[%clk 0:02:36]} 14. Bc2 {[%clk 0:02:30]}  Na6 {[%clk 0:02:23]} 15. Qd4 {[%clk 0:02:11]}  Nc5 {[%clk 0:02:18]} 16. f3 {[%clk 0:02:09]}  Nh5 {[%clk 0:02:04]} 17. Be3 {[%clk 0:02:01]}  Rc8 {[%clk 0:01:59]} 18. g4 {[%clk 0:01:51]}  Nf6 {[%clk 0:01:54]} 19. Bf4 {[%clk 0:01:47]}  Qe7 {[%clk 0:01:43]} 20. Rae1 {[%clk 0:01:41]}  Nfd7 {[%clk 0:01:39]} 21. Nb5 {[%clk 0:01:31]}  Ne5 {[%clk 0:01:39]} 22. Nxa7 {[%clk 0:01:25]}  Rcd8 {[%clk 0:01:30]} 23. Bxe5 {[%clk 0:01:18]}  dxe5 {[%clk 0:01:31]} 24. Qxc4 {[%clk 0:01:11]}  Ba6 {[%clk 0:01:27]} 25. Nb5 {[%clk 0:01:05]}  Rc8 {[%clk 0:01:24]} 26. Qe2 {[%clk 0:00:57]}  Qd7 {[%clk 0:01:18]} 27. a4 {[%clk 0:00:54]}  Nb7 {[%clk 0:01:13]} 28. Rc1 {[%clk 0:00:52]}  Rc5 {[%clk 0:01:09]} 29. Bd3 {[%clk 0:00:49]}  Rec8 {[%clk 0:01:05]} 30. Qe3 {[%clk 0:00:50]}  Bxb5 {[%clk 0:00:52]} 31. Bxb5 {[%clk 0:00:47]}  Qe7 {[%clk 0:00:48]} 32. Bc6 {[%clk 0:00:46]}  Nd8 {[%clk 0:00:32]} 33. Rxc5 {[%clk 0:00:45]}  bxc5 {[%clk 0:00:33]} 34. Bb5 {[%clk 0:00:43]}  Qd6 {[%clk 0:00:22]} 35. Rc1 {[%clk 0:00:42]}  Rc7 {[%clk 0:00:21]} 36. Qc3 {[%clk 0:00:40]}  Qb6 {[%clk 0:00:20]} 37. Kg2 {[%clk 0:00:36]}  f6 {[%clk 0:00:19]} 38. b4 {[%clk 0:00:32]}  Nb7 {[%clk 0:00:18]} 39. bxc5 {[%clk 0:00:25]}  Nxc5 {[%clk 0:00:19]} 40. Qa3 {[%clk 0:00:18]}  Kh7 {[%clk 0:00:13]} 41. Kg3 {[%clk 0:00:16]}  Nxe4+ {[%clk 0:00:12]} 42. fxe4 {[%clk 0:00:14]}  Ra7 {[%clk 0:00:13]} 43. Qc5 {[%clk 0:00:12]}  Qa5 {[%clk 0:00:13]} 44. Qc3 {[%clk 0:00:12]}  Qb6 {[%clk 0:00:13]} 45. Kg2 {[%clk 0:00:12]}  Ra8 {[%clk 0:00:12]} 46. Be2 {[%clk 0:00:12]}  Rxa4 {[%clk 0:00:11]} 47. Bd3 {[%clk 0:00:10]}  Ra2+ {[%clk 0:00:12]} 48. Rc2 {[%clk 0:00:10]}  Ra4 {[%clk 0:00:12]} 49. Rb2 {[%clk 0:00:10]}  Qe3 {[%clk 0:00:12]} 50. Qd2 {[%clk 0:00:10]}  Qd4 {[%clk 0:00:11]} 51. Qe2 {[%clk 0:00:08]}  Ra3 {[%clk 0:00:11]} 52. Rd2 {[%clk 0:00:08]}  Qc5 {[%clk 0:00:11]} 53. Bc2 {[%clk 0:00:08]}  Ra1 {[%clk 0:00:11]} 54. Bd1 {[%clk 0:00:08]}  Ra3 {[%clk 0:00:10]} 55. Rc2 {[%clk 0:00:09]}  Qd4 {[%clk 0:00:10]} 56. Rd2 {[%clk 0:00:08]}  Qc5 {[%clk 0:00:09]} 57. d6 {[%clk 0:00:08]}  Ra8 {[%clk 0:00:09]} 58. d7 {[%clk 0:00:08]}  Rd8 {[%clk 0:00:09]} 59. Qd3 {[%clk 0:00:08]}  Qc7 {[%clk 0:00:09]} 60. Ba4 {[%clk 0:00:08]}  Qb7 {[%clk 0:00:09]} 61. Qd5 {[%clk 0:00:09]}  Qb4 {[%clk 0:00:09]} 62. Bc6 {[%clk 0:00:09]}  Qc3 {[%clk 0:00:08]} 63. Qd3 {[%clk 0:00:09]}  Qc5 {[%clk 0:00:08]} 64. Bb5 {[%clk 0:00:08]}  Qb6 {[%clk 0:00:08]} 65. Rc2 {[%clk 0:00:08]}  Qb8 {[%clk 0:00:07]} 66. Qd5 {[%clk 0:00:06]}  Qa7 {[%clk 0:00:07]} 67. Rc8 {[%clk 0:00:06]}  Rxd7 {[%clk 0:00:05]} 68. Bxd7 {[%clk 0:00:06]}  Qe3 {[%clk 0:00:06]} 69. Rc2 {[%clk 0:00:06]}  Qf4 {[%clk 0:00:06]} 70. Bf5+ {[%clk 0:00:06]}  g6 {[%clk 0:00:05]} 71. Qf7+ {[%clk 0:00:07]}  Kh8 {[%clk 0:00:06]} 72. Rc8# {[%clk 0:00:07]} 1-0


[Site "https://www.chess.com"]

[Event "Titled Tuesday Blitz December 06 Late 2022"]
[White "Torres Dominguez, David"]
[Black "Clawitter, Craig"]
[WhiteFideId "2220857"]
[BlackFideId "2023105"]
[WhiteElo "2037"]
[BlackElo "2192"]
[Result "1/2-1/2"]
[Round "11"]
[TimeControl "180+1"]
[Date "2022.12.07"]
[WhiteClock "0:00:07"]
[BlackClock "0:00:03"]

1. e4 {[%clk 0:02:51]}  e6 {[%clk 0:02:57]} 2. d4 {[%clk 0:02:51]}  d5 {[%clk 0:02:58]} 3. exd5 {[%clk 0:02:51]}  exd5 {[%clk 0:02:59]} 4. Bd3 {[%clk 0:02:51]}  Bd6 {[%clk 0:02:58]} 5. Qf3 {[%clk 0:02:51]}  Nc6 {[%clk 0:02:48]} 6. c3 {[%clk 0:02:51]}  Nf6 {[%clk 0:02:38]} 7. Bf4 {[%clk 0:02:49]}  Bg4 {[%clk 0:02:31]} 8. Qe3+ {[%clk 0:02:49]}  Kf8 {[%clk 0:02:14]} 9. Bxd6+ {[%clk 0:02:45]}  Qxd6 {[%clk 0:02:14]} 10. Ne2 {[%clk 0:02:33]}  Re8 {[%clk 0:01:58]} 11. Qd2 {[%clk 0:01:13]}  Ne4 {[%clk 0:01:42]} 12. Bxe4 {[%clk 0:01:11]}  Bxe2 {[%clk 0:01:17]} 13. Kxe2 {[%clk 0:01:08]}  Rxe4+ {[%clk 0:01:11]} 14. Kf1 {[%clk 0:01:03]}  Ne7 {[%clk 0:00:59]} 15. f3 {[%clk 0:01:02]}  Re6 {[%clk 0:00:58]} 16. Na3 {[%clk 0:01:00]}  c6 {[%clk 0:00:58]} 17. Nc2 {[%clk 0:00:59]}  h5 {[%clk 0:00:54]} 18. Re1 {[%clk 0:00:58]}  Rhh6 {[%clk 0:00:48]} 19. Kf2 {[%clk 0:00:57]}  Rxe1 {[%clk 0:00:42]} 20. Nxe1 {[%clk 0:00:56]}  h4 {[%clk 0:00:33]} 21. Nd3 {[%clk 0:00:53]}  Nf5 {[%clk 0:00:17]} 22. Qf4 {[%clk 0:00:51]}  Qxf4 {[%clk 0:00:13]} 23. Nxf4 {[%clk 0:00:50]}  g5 {[%clk 0:00:13]} 24. Nd3 {[%clk 0:00:48]}  b6 {[%clk 0:00:12]} 25. Re1 {[%clk 0:00:47]}  Nd6 {[%clk 0:00:12]} 26. Ne5 {[%clk 0:00:45]}  Nc4 {[%clk 0:00:08]} 27. b3 {[%clk 0:00:28]}  Nxe5 {[%clk 0:00:07]} 28. Rxe5 {[%clk 0:00:28]}  f6 {[%clk 0:00:07]} 29. Re6 {[%clk 0:00:28]}  Kf7 {[%clk 0:00:06]} 30. Rxc6 {[%clk 0:00:27]}  Rh8 {[%clk 0:00:05]} 31. Rc7+ {[%clk 0:00:25]}  Kg6 {[%clk 0:00:05]} 32. c4 {[%clk 0:00:19]}  dxc4 {[%clk 0:00:04]} 33. bxc4 {[%clk 0:00:19]}  Rd8 {[%clk 0:00:04]} 34. d5 {[%clk 0:00:19]}  b5 {[%clk 0:00:04]} 35. cxb5 {[%clk 0:00:17]}  Rxd5 {[%clk 0:00:04]} 36. Rxa7 {[%clk 0:00:15]}  Rxb5 {[%clk 0:00:04]} 37. g3 {[%clk 0:00:07]}  Rb2+ {[%clk 0:00:04]} 38. Kg1 {[%clk 0:00:06]}  hxg3 {[%clk 0:00:01]} 39. Ra8 {[%clk 0:00:06]}  Kf5 {[%clk 0:00:02]} 40. hxg3 {[%clk 0:00:06]}  Kg6 {[%clk 0:00:01]} 41. Ra5 {[%clk 0:00:06]}  Kh6 {[%clk 0:00:01]} 42. Kh1 {[%clk 0:00:06]}  Kg6 {[%clk 0:00:02]} 43. Kg1 {[%clk 0:00:06]}  Kf7 {[%clk 0:00:02]} 44. Ra6 {[%clk 0:00:06]}  Ke7 {[%clk 0:00:02]} 45. Ra5 {[%clk 0:00:07]}  Kf7 {[%clk 0:00:03]} 46. Ra6 {[%clk 0:00:07]}  Kg6 {[%clk 0:00:03]} 47. Ra5 {[%clk 0:00:07]} 1/2-1/2


[Site "https://www.chess.com"]

[Event "Titled Tuesday Blitz December 06 Late 2022"]
[White "Vlassov, Nikolai"]
[Black "O`Gorman, Tom"]
[WhiteFideId "4103360"]
[BlackFideId "2508249"]
[WhiteElo "2324"]
[BlackElo "2271"]
[Result "1-0"]
[Round "11"]
[TimeControl "180+1"]
[Date "2022.12.06"]
[WhiteClock "0:00:09"]
[BlackClock "0:00:06"]

1. e4 {[%clk 0:03:00]}  c5 {[%clk 0:02:59]} 2. c3 {[%clk 0:03:00]}  Nf6 {[%clk 0:02:58]} 3. e5 {[%clk 0:03:00]}  Nd5 {[%clk 0:02:59]} 4. d4 {[%clk 0:02:59]}  e6 {[%clk 0:02:59]} 5. c4 {[%clk 0:02:58]}  Nb6 {[%clk 0:02:56]} 6. dxc5 {[%clk 0:02:58]}  Bxc5 {[%clk 0:02:55]} 7. Qg4 {[%clk 0:02:58]}  Bf8 {[%clk 0:02:40]} 8. Nf3 {[%clk 0:02:56]}  Nc6 {[%clk 0:02:39]} 9. Nc3 {[%clk 0:02:53]}  f5 {[%clk 0:02:21]} 10. exf6 {[%clk 0:02:50]}  Qxf6 {[%clk 0:02:21]} 11. Bg5 {[%clk 0:02:41]}  Qf7 {[%clk 0:02:20]} 12. O-O-O {[%clk 0:02:37]}  Bb4 {[%clk 0:02:16]} 13. Ne4 {[%clk 0:02:32]}  d5 {[%clk 0:02:13]} 14. Ng3 {[%clk 0:02:08]}  e5 {[%clk 0:01:45]} 15. Qh4 {[%clk 0:02:01]}  dxc4 {[%clk 0:01:44]} 16. Ne4 {[%clk 0:01:51]}  Bf5 {[%clk 0:01:37]} 17. a3 {[%clk 0:01:40]}  Bf8 {[%clk 0:01:22]} 18. Be3 {[%clk 0:01:13]}  Qg6 {[%clk 0:01:10]} 19. Ng3 {[%clk 0:00:49]}  c3 {[%clk 0:00:54]} 20. Nxf5 {[%clk 0:00:42]}  cxb2+ {[%clk 0:00:54]} 21. Kxb2 {[%clk 0:00:42]}  Qxf5 {[%clk 0:00:54]} 22. Bd3 {[%clk 0:00:41]}  Qf7 {[%clk 0:00:44]} 23. Ng5 {[%clk 0:00:35]}  Qe7 {[%clk 0:00:43]} 24. Qh5+ {[%clk 0:00:30]}  Kd8 {[%clk 0:00:34]} 25. Bf5+ {[%clk 0:00:20]}  Kc7 {[%clk 0:00:34]} 26. Ne6+ {[%clk 0:00:20]}  Kb8 {[%clk 0:00:25]} 27. Bc5 {[%clk 0:00:19]}  Qxc5 {[%clk 0:00:21]} 28. Nxc5 {[%clk 0:00:19]}  Bxc5 {[%clk 0:00:22]} 29. Qg5 {[%clk 0:00:16]}  Bd4+ {[%clk 0:00:21]} 30. Rxd4 {[%clk 0:00:16]}  Nxd4 {[%clk 0:00:20]} 31. Qxg7 {[%clk 0:00:15]}  Re8 {[%clk 0:00:17]} 32. Be4 {[%clk 0:00:15]}  Nc6 {[%clk 0:00:15]} 33. Bxc6 {[%clk 0:00:14]}  bxc6 {[%clk 0:00:16]} 34. Rc1 {[%clk 0:00:13]}  c5 {[%clk 0:00:15]} 35. Ka2 {[%clk 0:00:12]}  Rc8 {[%clk 0:00:13]} 36. Qxe5+ {[%clk 0:00:11]}  Kb7 {[%clk 0:00:14]} 37. Rxc5 {[%clk 0:00:10]}  Rxc5 {[%clk 0:00:13]} 38. Qxc5 {[%clk 0:00:10]}  Rc8 {[%clk 0:00:14]} 39. Qe7+ {[%clk 0:00:10]}  Rc7 {[%clk 0:00:14]} 40. Qe4+ {[%clk 0:00:10]}  Ka6 {[%clk 0:00:14]} 41. f4 {[%clk 0:00:11]}  Rc4 {[%clk 0:00:13]} 42. Qd3 {[%clk 0:00:10]}  Ka5 {[%clk 0:00:13]} 43. f5 {[%clk 0:00:10]}  Ra4 {[%clk 0:00:11]} 44. f6 {[%clk 0:00:10]}  Rc4 {[%clk 0:00:06]} 45. f7 {[%clk 0:00:09]}  Rc8 {[%clk 0:00:06]} 46. Qf5+ {[%clk 0:00:08]}  Ka6 {[%clk 0:00:06]} 47. Qxc8+ {[%clk 0:00:08]}  Nxc8 {[%clk 0:00:06]} 48. f8=Q {[%clk 0:00:09]} 1-0


[Site "https://www.chess.com"]

[Event "Titled Tuesday Blitz December 06 Late 2022"]
[White "Walentukiewicz, Michal"]
[Black "Poliakova, Varvara"]
[WhiteFideId "1126903"]
[BlackFideId "13518313"]
[WhiteElo "2028"]
[BlackElo "2075"]
[Result "1/2-1/2"]
[Round "11"]
[TimeControl "180+1"]
[Date "2022.12.06"]
[WhiteClock "0:01:22"]
[BlackClock "0:00:55"]

1. g3 {[%clk 0:02:58]}  f5 {[%clk 0:02:58]} 2. Bg2 {[%clk 0:02:51]}  Nf6 {[%clk 0:02:56]} 3. Nf3 {[%clk 0:02:51]}  d6 {[%clk 0:02:56]} 4. O-O {[%clk 0:02:51]}  g6 {[%clk 0:02:56]} 5. d3 {[%clk 0:02:51]}  Bg7 {[%clk 0:02:55]} 6. c4 {[%clk 0:02:52]}  e5 {[%clk 0:02:52]} 7. Nc3 {[%clk 0:02:52]}  O-O {[%clk 0:02:53]} 8. Rb1 {[%clk 0:02:52]}  Nc6 {[%clk 0:02:49]} 9. b4 {[%clk 0:02:52]}  h6 {[%clk 0:02:42]} 10. b5 {[%clk 0:02:52]}  Ne7 {[%clk 0:02:41]} 11. c5 {[%clk 0:02:52]}  g5 {[%clk 0:02:38]} 12. cxd6 {[%clk 0:02:52]}  cxd6 {[%clk 0:02:39]} 13. Qb3+ {[%clk 0:02:50]}  Kh7 {[%clk 0:02:34]} 14. Ba3 {[%clk 0:02:51]}  f4 {[%clk 0:02:30]} 15. Nd2 {[%clk 0:02:51]}  Nf5 {[%clk 0:02:28]} 16. Nde4 {[%clk 0:02:46]}  Nd4 {[%clk 0:02:28]} 17. Qd1 {[%clk 0:02:43]}  Nxe4 {[%clk 0:02:25]} 18. Nxe4 {[%clk 0:02:43]}  Bg4 {[%clk 0:02:16]} 19. f3 {[%clk 0:02:35]}  Bd7 {[%clk 0:02:12]} 20. Bxd6 {[%clk 0:02:29]}  Rf7 {[%clk 0:02:08]} 21. a4 {[%clk 0:02:27]}  Bf5 {[%clk 0:01:48]} 22. Ba3 {[%clk 0:02:23]}  Bxe4 {[%clk 0:01:37]} 23. fxe4 {[%clk 0:02:18]}  Qd7 {[%clk 0:01:35]} 24. gxf4 {[%clk 0:02:09]}  exf4 {[%clk 0:01:32]} 25. Bb2 {[%clk 0:02:06]}  Qg4 {[%clk 0:01:32]} 26. Bxd4 {[%clk 0:02:05]}  Bxd4+ {[%clk 0:01:33]} 27. Kh1 {[%clk 0:02:06]}  Be3 {[%clk 0:01:18]} 28. Bf3 {[%clk 0:01:56]}  Qh4 {[%clk 0:01:15]} 29. Qe1 {[%clk 0:01:56]}  Qh3 {[%clk 0:01:13]} 30. Bg2 {[%clk 0:01:55]}  Qh5 {[%clk 0:01:11]} 31. Bf3 {[%clk 0:01:55]}  g4 {[%clk 0:01:09]} 32. Bg2 {[%clk 0:01:52]}  g3 {[%clk 0:01:08]} 33. h3 {[%clk 0:01:50]}  Rc8 {[%clk 0:01:08]} 34. Qd1 {[%clk 0:01:32]}  Rfc7 {[%clk 0:01:01]} 35. Qb3 {[%clk 0:01:31]}  Qxe2 {[%clk 0:00:58]} 36. Qd5 {[%clk 0:01:26]}  Rc2 {[%clk 0:00:53]} 37. Qf7+ {[%clk 0:01:21]}  Kh8 {[%clk 0:00:54]} 38. Qf6+ {[%clk 0:01:20]}  Kh7 {[%clk 0:00:54]} 39. Qf7+ {[%clk 0:01:21]}  Kh8 {[%clk 0:00:55]} 40. Qf6+ {[%clk 0:01:21]}  Kh7 {[%clk 0:00:55]} 41. Qf7+ {[%clk 0:01:22]} 1/2-1/2


[Site "https://www.chess.com"]

[Event "Titled Tuesday Blitz December 06 Late 2022"]
[White "Womacka, Mathias"]
[Black "Storey, Charles H"]
[WhiteFideId "4611390"]
[BlackFideId "406686"]
[WhiteElo "2377"]
[BlackElo "2251"]
[Result "0-1"]
[Round "11"]
[TimeControl "180+1"]
[Date "2022.12.07"]
[WhiteClock "0:00:06"]
[BlackClock "0:00:10"]

1. e4 {[%clk 0:02:56]}  g6 {[%clk 0:03:00]} 2. d4 {[%clk 0:02:55]}  Bg7 {[%clk 0:03:00]} 3. Nc3 {[%clk 0:02:54]}  c5 {[%clk 0:03:01]} 4. dxc5 {[%clk 0:02:53]}  Bxc3+ {[%clk 0:02:59]} 5. bxc3 {[%clk 0:02:53]}  Nf6 {[%clk 0:02:59]} 6. Qd4 {[%clk 0:02:50]}  Nc6 {[%clk 0:02:58]} 7. Qa4 {[%clk 0:02:40]}  b6 {[%clk 0:02:50]} 8. cxb6 {[%clk 0:02:36]}  Bb7 {[%clk 0:02:49]} 9. Bd3 {[%clk 0:02:33]}  axb6 {[%clk 0:02:49]} 10. Qb3 {[%clk 0:02:16]}  Ne5 {[%clk 0:02:41]} 11. f3 {[%clk 0:02:05]}  O-O {[%clk 0:02:36]} 12. Ne2 {[%clk 0:02:01]}  d5 {[%clk 0:02:27]} 13. exd5 {[%clk 0:01:50]}  Bxd5 {[%clk 0:02:26]} 14. Qb4 {[%clk 0:01:48]}  Bc6 {[%clk 0:01:53]} 15. Nd4 {[%clk 0:01:44]}  Bb7 {[%clk 0:01:41]} 16. O-O {[%clk 0:01:37]}  Nd5 {[%clk 0:01:40]} 17. Qb3 {[%clk 0:01:30]}  Rc8 {[%clk 0:01:32]} 18. Nb5 {[%clk 0:01:18]}  Ba6 {[%clk 0:01:14]} 19. c4 {[%clk 0:01:16]}  Nc7 {[%clk 0:01:03]} 20. Bb2 {[%clk 0:01:08]}  Nxd3 {[%clk 0:01:02]} 21. cxd3 {[%clk 0:01:07]}  Bxb5 {[%clk 0:00:56]} 22. cxb5 {[%clk 0:01:07]}  Qd5 {[%clk 0:00:55]} 23. Qxd5 {[%clk 0:00:58]}  Nxd5 {[%clk 0:00:55]} 24. Rfc1 {[%clk 0:00:57]}  Nb4 {[%clk 0:00:47]} 25. Rxc8 {[%clk 0:00:30]}  Rxc8 {[%clk 0:00:46]} 26. Bd4 {[%clk 0:00:29]}  Nd5 {[%clk 0:00:36]} 27. a4 {[%clk 0:00:26]}  Ra8 {[%clk 0:00:28]} 28. Kf2 {[%clk 0:00:21]}  f6 {[%clk 0:00:28]} 29. Ke2 {[%clk 0:00:17]}  e5 {[%clk 0:00:28]} 30. Bb2 {[%clk 0:00:17]}  Kf7 {[%clk 0:00:22]} 31. g3 {[%clk 0:00:16]}  Ke6 {[%clk 0:00:21]} 32. d4 {[%clk 0:00:16]}  Rc8 {[%clk 0:00:19]} 33. Kd3 {[%clk 0:00:16]}  Nb4+ {[%clk 0:00:19]} 34. Ke3 {[%clk 0:00:15]}  Nc2+ {[%clk 0:00:15]} 35. Kd3 {[%clk 0:00:15]}  Nxa1 {[%clk 0:00:15]} 36. Bxa1 {[%clk 0:00:16]}  Ra8 {[%clk 0:00:14]} 37. dxe5 {[%clk 0:00:15]}  fxe5 {[%clk 0:00:14]} 38. f4 {[%clk 0:00:13]}  exf4 {[%clk 0:00:11]} 39. gxf4 {[%clk 0:00:14]}  Rxa4 {[%clk 0:00:12]} 40. Bd4 {[%clk 0:00:14]}  Rb4 {[%clk 0:00:10]} 41. Bxb6 {[%clk 0:00:14]}  Rxb5 {[%clk 0:00:11]} 42. Be3 {[%clk 0:00:15]}  Kf5 {[%clk 0:00:10]} 43. Ke2 {[%clk 0:00:15]}  Ke4 {[%clk 0:00:10]} 44. Bf2 {[%clk 0:00:12]}  Rb2+ {[%clk 0:00:10]} 45. Kf1 {[%clk 0:00:12]}  Kxf4 {[%clk 0:00:09]} 46. Bd4 {[%clk 0:00:12]}  Rc2 {[%clk 0:00:08]} 47. h3 {[%clk 0:00:09]}  Kf3 {[%clk 0:00:07]} 48. Kg1 {[%clk 0:00:09]}  Kg3 {[%clk 0:00:07]} 49. Kf1 {[%clk 0:00:09]}  Kxh3 {[%clk 0:00:07]} 50. Be5 {[%clk 0:00:09]}  Ra2 {[%clk 0:00:07]} 51. Kg1 {[%clk 0:00:09]}  h5 {[%clk 0:00:07]} 52. Kf1 {[%clk 0:00:09]}  g5 {[%clk 0:00:07]} 53. Bf6 {[%clk 0:00:09]}  g4 {[%clk 0:00:07]} 54. Be5 {[%clk 0:00:10]}  h4 {[%clk 0:00:08]} 55. Bf6 {[%clk 0:00:09]}  g3 {[%clk 0:00:07]} 56. Be5 {[%clk 0:00:09]}  Kg4 {[%clk 0:00:08]} 57. Ke1 {[%clk 0:00:08]}  h3 {[%clk 0:00:08]} 58. Kf1 {[%clk 0:00:08]}  Rc2 {[%clk 0:00:08]} 59. Ke1 {[%clk 0:00:08]}  Rc5 {[%clk 0:00:09]} 60. Bd4 {[%clk 0:00:07]}  Rb5 {[%clk 0:00:09]} 61. Ke2 {[%clk 0:00:07]}  Rb7 {[%clk 0:00:09]} 62. Ke3 {[%clk 0:00:07]}  Rd7 {[%clk 0:00:10]} 63. Ke4 {[%clk 0:00:07]}  Rf7 {[%clk 0:00:10]} 64. Be5 {[%clk 0:00:06]}  Rf3 {[%clk 0:00:11]} 65. Bxg3 {[%clk 0:00:05]}  Rxg3 {[%clk 0:00:10]} 66. Ke5 {[%clk 0:00:06]}  h2 {[%clk 0:00:10]} 0-1


[Site "https://www.chess.com"]

[Event "Titled Tuesday Blitz December 06 Late 2022"]
[White "Yuan, Qingyu"]
[Black "Drozdowski, Kacper"]
[WhiteFideId "8609772"]
[BlackFideId "1136720"]
[WhiteElo "2359"]
[BlackElo "2486"]
[Result "0-1"]
[Round "11"]
[TimeControl "180+1"]
[Date "2022.12.06"]
[WhiteClock "0:00:07"]
[BlackClock "0:00:08"]

1. e4 {[%clk 0:03:00]}  c5 {[%clk 0:02:59]} 2. Nf3 {[%clk 0:02:59]}  e6 {[%clk 0:02:59]} 3. d4 {[%clk 0:02:59]}  cxd4 {[%clk 0:02:59]} 4. Nxd4 {[%clk 0:03:00]}  a6 {[%clk 0:02:59]} 5. c4 {[%clk 0:03:00]}  Nf6 {[%clk 0:02:59]} 6. Nc3 {[%clk 0:03:00]}  Bb4 {[%clk 0:02:58]} 7. Qd3 {[%clk 0:02:57]}  Nc6 {[%clk 0:02:57]} 8. Nxc6 {[%clk 0:02:45]}  dxc6 {[%clk 0:02:58]} 9. Qxd8+ {[%clk 0:02:38]}  Kxd8 {[%clk 0:02:59]} 10. Bg5 {[%clk 0:02:25]}  e5 {[%clk 0:02:56]} 11. O-O-O+ {[%clk 0:02:19]}  Ke7 {[%clk 0:02:46]} 12. f3 {[%clk 0:02:08]}  Bc5 {[%clk 0:02:37]} 13. Na4 {[%clk 0:02:06]}  Bd4 {[%clk 0:02:36]} 14. Rxd4 {[%clk 0:02:03]}  exd4 {[%clk 0:02:34]} 15. e5 {[%clk 0:02:04]}  Bf5 {[%clk 0:02:10]} 16. c5 {[%clk 0:01:38]}  Rad8 {[%clk 0:02:03]} 17. Bc4 {[%clk 0:01:36]}  Rhe8 {[%clk 0:01:56]} 18. exf6+ {[%clk 0:01:18]}  gxf6 {[%clk 0:01:56]} 19. Bf4 {[%clk 0:01:16]}  Be6 {[%clk 0:01:36]} 20. Bd3 {[%clk 0:01:11]}  h5 {[%clk 0:01:29]} 21. b3 {[%clk 0:00:58]}  Rg8 {[%clk 0:01:29]} 22. g3 {[%clk 0:00:57]}  Rde8 {[%clk 0:01:22]} 23. Kd2 {[%clk 0:00:50]}  Bd5 {[%clk 0:01:18]} 24. Rf1 {[%clk 0:00:48]}  Kd8 {[%clk 0:01:16]} 25. Nb6 {[%clk 0:00:48]}  Be6 {[%clk 0:01:15]} 26. Bh7 {[%clk 0:00:42]}  Rh8 {[%clk 0:01:13]} 27. Be4 {[%clk 0:00:41]}  f5 {[%clk 0:01:07]} 28. Bd3 {[%clk 0:00:41]}  f6 {[%clk 0:01:06]} 29. h4 {[%clk 0:00:40]}  Ke7 {[%clk 0:01:04]} 30. Re1 {[%clk 0:00:31]}  Kf7 {[%clk 0:01:05]} 31. Rd1 {[%clk 0:00:27]}  a5 {[%clk 0:01:03]} 32. Nc4 {[%clk 0:00:25]}  Bxc4 {[%clk 0:00:57]} 33. Bxc4+ {[%clk 0:00:26]}  Kg6 {[%clk 0:00:57]} 34. Kc2 {[%clk 0:00:26]}  Rd8 {[%clk 0:00:55]} 35. Bd6 {[%clk 0:00:25]}  Rhe8 {[%clk 0:00:47]} 36. Rxd4 {[%clk 0:00:25]}  Re1 {[%clk 0:00:46]} 37. Bd3 {[%clk 0:00:26]}  Kf7 {[%clk 0:00:37]} 38. Bxf5 {[%clk 0:00:25]}  Re2+ {[%clk 0:00:37]} 39. Kb1 {[%clk 0:00:21]}  Rde8 {[%clk 0:00:36]} 40. Be4 {[%clk 0:00:18]}  Rg2 {[%clk 0:00:33]} 41. Bf4 {[%clk 0:00:18]}  f5 {[%clk 0:00:32]} 42. Rd7+ {[%clk 0:00:12]}  Kg8 {[%clk 0:00:24]} 43. Bc2 {[%clk 0:00:08]}  Re1+ {[%clk 0:00:24]} 44. Rd1 {[%clk 0:00:05]}  Ree2 {[%clk 0:00:22]} 45. Rc1 {[%clk 0:00:05]}  Rgf2 {[%clk 0:00:19]} 46. a4 {[%clk 0:00:04]}  Kf7 {[%clk 0:00:18]} 47. Kb2 {[%clk 0:00:05]}  Rxf3 {[%clk 0:00:18]} 48. Rd1 {[%clk 0:00:04]}  Rff2 {[%clk 0:00:18]} 49. Rc1 {[%clk 0:00:05]}  Rg2 {[%clk 0:00:17]} 50. Bc7 {[%clk 0:00:05]}  Ref2 {[%clk 0:00:15]} 51. Be5 {[%clk 0:00:05]}  Re2 {[%clk 0:00:15]} 52. Bf4 {[%clk 0:00:05]}  Ref2 {[%clk 0:00:15]} 53. Kb1 {[%clk 0:00:04]}  Re2 {[%clk 0:00:14]} 54. Bd6 {[%clk 0:00:04]}  Ref2 {[%clk 0:00:14]} 55. Be5 {[%clk 0:00:05]}  Re2 {[%clk 0:00:14]} 56. Bb2 {[%clk 0:00:03]}  Rxg3 {[%clk 0:00:14]} 57. Bxf5 {[%clk 0:00:03]}  Rxb3 {[%clk 0:00:13]} 58. Rc2 {[%clk 0:00:03]}  Rxc2 {[%clk 0:00:13]} 59. Kxc2 {[%clk 0:00:03]}  Rb4 {[%clk 0:00:12]} 60. Bc3 {[%clk 0:00:03]}  Rxa4 {[%clk 0:00:12]} 61. Bc8 {[%clk 0:00:03]}  Ke7 {[%clk 0:00:09]} 62. Bxb7 {[%clk 0:00:03]}  Kd7 {[%clk 0:00:09]} 63. Ba6 {[%clk 0:00:03]}  Rxh4 {[%clk 0:00:09]} 64. Be2 {[%clk 0:00:02]}  Rh2 {[%clk 0:00:09]} 65. Kd3 {[%clk 0:00:03]}  a4 {[%clk 0:00:09]} 66. Bb4 {[%clk 0:00:03]}  h4 {[%clk 0:00:09]} 67. Bg4+ {[%clk 0:00:03]}  Kc7 {[%clk 0:00:09]} 68. Ba5+ {[%clk 0:00:04]}  Kb7 {[%clk 0:00:09]} 69. Kc4 {[%clk 0:00:04]}  Rg2 {[%clk 0:00:08]} 70. Bd7 {[%clk 0:00:04]}  a3 {[%clk 0:00:06]} 71. Bc3 {[%clk 0:00:04]}  a2 {[%clk 0:00:07]} 72. Kb3 {[%clk 0:00:05]}  Rg3 {[%clk 0:00:07]} 73. Kb2 {[%clk 0:00:05]}  Rxc3 {[%clk 0:00:07]} 74. Kxa2 {[%clk 0:00:06]}  Rg3 {[%clk 0:00:07]} 75. Kb2 {[%clk 0:00:06]}  h3 {[%clk 0:00:07]} 76. Bf5 {[%clk 0:00:06]}  h2 {[%clk 0:00:08]} 77. Be4 {[%clk 0:00:07]}  Rg1 {[%clk 0:00:07]} 78. Kc3 {[%clk 0:00:07]}  h1=Q {[%clk 0:00:07]} 79. Bxh1 {[%clk 0:00:07]}  Rxh1 {[%clk 0:00:08]} 0-1


[Site "https://www.chess.com"]